bitfinex/quotes_SOLUSD_20240813
["timestamp","ask_amount","ask_price","bid_price","bid_amount"]
[1723553008974,20.0,146.38,146.27,7.6551459]
[1723553008975,6.8321,146.37,146.28,34.1808]
[1723553009271,26.8326,146.36,146.31,17.0862]
[1723553009441,26.8326,146.36,146.31,23.9206]
[1723553009646,20.0,146.36,146.32,6.8342]
[1723553009977,20.0,146.37,146.31,17.0862]
[1723553010148,20.0,146.37,146.34,6.8332]
[1723553010351,20.0,146.38,146.33,23.9174]
[1723553010672,6.8321,146.37,146.33,17.0836]
[1723553010841,20.0,146.36,146.33,17.0836]
[1723553011354,54.1369,146.47,146.28,34.1808]
[1723553011355,23.1808,146.43,146.39,6.8308]
[1723553011744,23.1808,146.43,146.37,17.0798]
[1723553011941,23.1808,146.43,146.35,6.8328]
[1723553011942,39.13,146.42,146.35,6.8328]
[1723553012337,6.8306,146.4,146.35,6.8329]
[1723553012570,6.8306,146.4,146.35,6.8328]
[1723553013069,6.8315,146.38,146.34,17.0828]
[1723553013282,20.0,146.37,146.34,17.0828]
[1723553013861,9.57913621,146.37,146.32,0.12549]
[1723553014063,8.54121424,146.36,146.31,23.9206]
[1723553014347,2.74703621,146.37,146.34,6.8333]
[1723553014669,6.8325,146.36,146.28,34.1808]
[1723553015293,6.8325,146.36,146.29,45.0]
[1723553015580,6.8334,146.34,146.25,3.2353]
[1723553015776,21.8578,146.34,146.22,73.3237]
[1723553015984,21.8578,146.34,146.29,6.8356]
[1723553017082,21.8578,146.34,146.3,6.8352]
[1723553017379,21.8578,146.34,146.29,6.8355]
[1723553017993,6.8339,146.33,146.28,6.836]
[1723553018561,16.73335904,146.34,146.27,17.9097459]
[1723553018868,21.70895635,146.33,146.27,17.9097459]
[1723553019072,6.8346,146.32,146.27,24.7463459]
[1723553019286,26.8348,146.31,146.27,17.9097459]
[1723553019466,26.8348,146.31,146.27,0.8187459]
[1723553019467,20.0,146.31,146.27,0.8187459]
[1723553019662,6.8353,146.3,146.27,0.8187459]
[1723553020163,6.8349,146.31,146.27,0.8187459]
[1723553020363,20.0,146.3,146.27,0.8187459]
[1723553020565,6.8362,146.28,146.27,0.8187459]
[1723553020771,33.2262,146.28,146.27,0.8187459]
[1723553021504,72.3562,146.28,146.27,0.8187459]
[1723553021659,6.837,146.27,146.21,23.9369]
[1723553021989,20.0,146.26,146.21,17.0978]
[1723553022152,20.0,146.26,146.23,17.0959]
[1723553022478,6.39,146.28,146.21,34.1956]
[1723553022681,6.39,146.28,146.25,17.0934]
[1723553023073,6.39,146.28,146.23,6.8384]
[1723553023474,13.2263,146.28,146.23,6.8384]
[1723553023713,26.837,146.27,146.22,17.0969]
[1723553023871,20.0,146.27,146.22,17.0969]
[1723553024189,21.70975893,146.27,146.2,6.8398]
[1723553024384,22.0272,146.25,146.2,6.8396]
[1723553024771,22.0272,146.25,146.19,17.1005]
[1723553024772,26.8382,146.24,146.19,6.84]
[1723553024971,20.0,146.24,146.14,3.2353]
[1723553025172,20.0,146.24,146.14,42.3653]
[1723553025412,20.0,146.24,146.22,17.0969]
[1723553025576,20.0,146.24,146.13,0.8187459]
[1723553025577,59.13,146.24,146.16,17.1043]
[1723553025781,1.71028964,146.23,146.16,17.1043]
[1723553026080,1.71028964,146.23,146.13,0.8187459]
[1723553026081,26.8382,146.24,146.18,23.9419]
[1723553026304,39.13,146.22,146.15,17.1052]
[1723553026612,28.55041941,146.21,146.15,23.9474]
[1723553026905,1.71051865,146.2,146.15,23.9474]
[1723553027107,1.71051865,146.2,146.13,0.8187459]
[1723553027406,1.71051865,146.2,146.13,7.6618459]
[1723553027407,6.8404,146.19,146.13,7.6618459]
[1723553027706,21.71072319,146.18,146.13,7.6619459]
[1723553028079,20.0,146.18,146.14,6.8426]
[1723553028396,20.0,146.19,146.14,17.1066]
[1723553028599,20.0,146.21,146.16,6.8417]
[1723553028792,26.8396,146.21,146.15,6.8422]
[1723553029208,6.8399,146.2,146.14,23.9493]
[1723553029379,20.0,146.19,146.15,6.8421]
[1723553029589,20.0,146.21,146.17,6.8413]
[1723553029909,20.0,146.21,146.13,0.8187459]
[1723553029910,20.0,146.21,146.2,6.8399]
[1723553030111,20.0,146.21,146.18,23.942]
[1723553030325,20.0,146.22,146.18,17.1012]
[1723553030621,15.1896,146.25,146.24,6.838]
[1723553030912,6.3745,146.27,146.23,6.8384]
[1723553031114,6.3745,146.27,146.22,17.0974]
[1723553031793,6.8371,146.26,146.22,17.0974]
[1723553031998,20.0,146.25,146.22,17.0974]
[1723553032189,13.2112,146.27,146.22,17.0974]
[1723553032388,6.3745,146.27,146.19,24.06619]
[1723553032590,6.3745,146.27,146.19,17.1007]
[1723553032824,6.3745,146.27,146.15,17.1045]
[1723553032825,85.84009475,146.26,146.15,17.1045]
[1723553032983,6.8386,146.23,146.17,6.8413]
[1723553033696,26.8391,146.22,146.17,6.8413]
[1723553033906,20.0,146.22,146.18,6.8407]
[1723553034102,20.0,146.23,146.13,0.8187459]
[1723553034302,15.8204,146.22,146.17,6.8413]
[1723553034510,20.0,146.21,146.17,6.8413]
[1723553034812,20.0,146.21,146.16,17.1036]
[1723553035017,20.0,146.21,146.18,6.8408]
[1723553035218,20.0,146.21,146.19,6.8402]
[1723553035597,15.8204,146.22,146.21,6.8394]
[1723553035901,15.8773,146.26,146.21,17.0986]
[1723553036117,15.8773,146.26,146.23,6.8384]
[1723553036491,15.8773,146.26,146.22,6.8389]
[1723553036687,15.8773,146.26,146.2,6.8395]
[1723553036915,6.8393,146.22,146.17,24.06979]
[1723553037222,20.0,146.21,146.17,17.1031]
[1723553037396,20.0,146.21,146.14,17.1064]
[1723553037591,20.0,146.21,146.16,17.1038]
[1723553037906,20.0,146.21,146.18,17.1013]
[1723553038101,55.0073,146.26,146.18,17.1013]
[1723553038102,6.8387,146.23,146.18,17.1013]
[1723553038322,20.0,146.22,146.18,23.942]
[1723553038628,20.0,146.25,146.16,0.12549]
[1723553038822,6.8386,146.23,146.18,6.8408]
[1723553039032,20.0,146.22,146.19,0.12549]
[1723553039326,6.8384,146.24,146.18,6.8408]
[1723553039506,21.71011615,146.23,146.14,17.1065]
[1723553039699,20.0,146.23,146.16,17.1035]
[1723553040098,20.0,146.23,146.12,34.2178]
[1723553040099,20.0,146.25,146.14,39.13]
[1723553040400,39.13,146.23,146.12,34.2178]
[1723553040589,6.84,146.2,146.12,34.2178]
[1723553040790,20.0,146.19,146.15,6.8419]
[1723553041093,26.8405,146.19,146.14,17.1066]
[1723553041427,26.8405,146.19,146.11,17.1098]
[1723553041428,6.6354,146.18,146.11,17.1098]
[1723553041591,36.1644,146.17,146.11,17.1098]
[1723553041793,36.1644,146.17,146.11,23.9539]
[1723553042295,1.7108632,146.16,146.08,17.1132]
[1723553042523,6.8427,146.14,146.08,23.9583]
[1723553042703,28.55387786,146.14,146.09,6.8449]
[1723553043117,6.3189,146.12,146.04,6.8471]
[1723553043319,6.3189,146.12,145.98,17.9433459]
[1723553043320,39.13,146.09,145.98,17.9433459]
[1723553043510,6.8466,146.06,146.0,6.8488]
[1723553043832,20.0,146.05,145.99,6.8496]
[1723553044054,1.71227404,146.04,145.98,24.7934459]
[1723553044329,55.5803,146.03,145.98,0.8187459]
[1723553044538,1.71275975,146.02,145.98,0.8187459]
[1723553044818,20.0,146.02,145.98,0.8187459]
[1723553045147,26.8484,146.02,145.98,0.8187459]
[1723553045362,20.0,146.02,145.98,7.6689459]
[1723553045655,20.0,146.02,145.98,0.8187459]
[1723553045863,20.0,146.02,145.99,17.1235]
[1723553046649,20.0,146.02,146.0,6.8492]
[1723553046962,15.6482,146.08,146.02,17.1209]
[1723553047125,15.6482,146.08,146.04,6.8474]
[1723553047329,20.0,146.07,146.04,6.8474]
[1723553047522,20.0,146.07,146.02,17.1209]
[1723553047731,59.13,146.07,145.98,0.8187459]
[1723553048033,6.8484,146.02,145.98,0.8187459]
[1723553048233,20.0,146.01,145.98,0.8187459]
[1723553048454,6.8497,145.99,145.98,0.8187459]
[1723553048628,74.7034,145.99,145.89,17.1358]
[1723553048831,6.8508,145.97,145.91,23.9864]
[1723553049089,20.0,145.96,145.92,6.8526]
[1723553049252,20.0,145.96,145.91,17.133]
[1723553049447,20.0,145.96,145.93,23.9831]
[1723553049626,20.0,145.96,145.85,39.13]
[1723553049627,26.8507,145.97,145.9,17.1347]
[1723553049828,20.0,145.97,145.9,17.1347]
[1723553050065,6.8511,145.97,145.9,23.9883]
[1723553050236,20.0,145.96,145.91,6.8531]
[1723553050759,26.8512,145.96,145.9,23.9886]
[1723553050969,6.8521,145.94,145.88,6.8547]
[1723553051133,20.0,145.96,145.85,34.2804]
[1723553051336,20.0,145.96,145.92,6.8528]
[1723553051536,6.8513,145.96,145.9,23.9876]
[1723553051741,26.8517,145.95,145.89,6.8543]
[1723553052058,26.8517,145.95,145.89,23.9896]
[1723553052257,20.0,145.95,145.9,6.8538]
[1723553052559,20.0,145.95,145.89,17.1352]
[1723553052737,6.8527,145.93,145.87,6.8553]
[1723553052954,45.0,145.94,145.86,17.1396]
[1723553052955,21.71388148,145.92,145.86,17.1396]
[1723553053141,21.71388148,145.92,145.84,0.8187459]
[1723553053339,28.56738148,145.92,145.84,0.8187459]
[1723553053541,20.0,145.92,145.88,6.8545]
[1723553053753,20.0,145.94,145.89,17.1353]
[1723553053969,20.0,145.96,145.89,17.1353]
[1723553054265,20.0,145.96,145.9,6.8539]
[1723553054266,6.8515,145.96,145.9,6.8539]
[1723553054666,20.0,145.95,145.91,6.8534]
[1723553054868,20.0,145.95,145.91,17.1329]
[1723553055054,20.0,145.95,145.87,23.9926]
[1723553055256,6.853,145.92,145.87,17.1375]
[1723553055568,6.853,145.92,145.87,23.9928]
[1723553055944,6.8531,145.92,145.87,23.9928]
[1723553056144,20.0,145.91,145.87,23.9928]
[1723553056459,20.0,145.91,145.88,6.8548]
[1723553056661,20.0,145.92,145.87,23.9928]
[1723553056853,20.0,145.92,145.91,6.8535]
[1723553057044,20.0,145.92,145.9,17.1346]
[1723553057045,15.5734,145.99,145.87,39.13]
[1723553057249,22.4232,145.99,145.93,17.1314]
[1723553057456,15.5734,145.99,145.96,17.1278]
[1723553057786,15.5734,145.99,145.93,17.1311]
[1723553058075,15.5734,145.99,145.95,17.1281]
[1723553058243,6.8507,145.97,145.92,23.9854]
[1723553058443,15.5734,145.99,145.93,0.12549]
[1723553058646,15.5734,145.99,145.96,6.8511]
[1723553058857,15.5734,145.99,145.94,17.1294]
[1723553059072,15.5734,145.99,145.95,6.8515]
[1723553059243,6.8502,145.98,145.9,17.1338]
[1723553059562,6.8508,145.97,145.9,17.1338]
[1723553059747,15.5734,145.99,145.92,6.8526]
[1723553059954,6.8506,145.98,145.92,6.8526]
[1723553060274,20.0,145.97,145.92,6.8526]
[1723553060651,20.0,145.97,145.93,6.8525]
[1723553060853,20.0,145.97,145.92,6.8529]
[1723553061061,26.8507,145.97,145.91,6.8534]
[1723553061268,26.8507,145.97,145.92,6.8529]
[1723553061482,20.0,145.97,145.92,6.8529]
[1723553062547,15.5734,145.99,145.96,6.851]
[1723553062768,15.5734,145.99,145.94,0.12549]
[1723553063076,15.5734,145.99,145.95,23.9796]
[1723553063246,15.5734,145.99,145.92,17.1322]
[1723553063447,6.8503,145.98,145.92,23.9851]
[1723553063669,22.4232,145.99,145.92,17.1322]
[1723553063868,15.5734,145.99,145.95,6.8516]
[1723553064174,20.0,145.98,145.92,17.1322]
[1723553064382,20.0,145.98,145.93,0.25098]
[1723553064692,6.158,146.0,145.97,6.8503]
[1723553064975,6.158,146.0,145.96,17.127]
[1723553065276,15.1428,146.03,145.98,17.1248]
[1723553065478,15.1428,146.03,146.0,6.8489]
[1723553065642,6.4775,146.04,145.95,0.12549]
[1723553065643,6.4775,146.04,146.03,6.8479]
[1723553065848,16.3333,146.07,146.03,6.8479]
[1723553066252,16.3333,146.07,146.04,6.8473]
[1723553066452,1.71185181,146.06,145.99,17.1242]
[1723553066765,1.71185181,146.06,146.01,17.1214]
[1723553066766,1.71230626,146.06,146.01,17.1214]
[1723553067072,16.3333,146.07,146.03,17.1189]
[1723553067386,20.0,146.06,146.03,23.9667]
[1723553067674,1.71189253,146.06,146.01,0.12549]
[1723553067973,16.3333,146.07,146.04,6.847]
[1723553068177,16.3333,146.07,146.03,0.12549]
[1723553068477,16.3333,146.07,146.04,17.1179]
[1723553068684,16.3333,146.07,146.04,23.9652]
[1723553068844,16.3333,146.07,146.05,6.8467]
[1723553069171,16.3333,146.07,146.05,6.8468]
[1723553069380,16.3333,146.07,146.0,45.0]
[1723553069381,16.3333,146.07,145.99,6.8496]
[1723553069554,26.8466,146.06,146.0,6.8491]
[1723553069749,26.8466,146.06,146.01,6.8486]
[1723553069952,26.8466,146.06,145.98,6.8502]
[1723553069953,20.0,146.06,145.98,6.8502]
[1723553070170,6.1956,146.09,146.0,39.13]
[1723553070377,6.1956,146.09,146.03,17.1187]
[1723553070667,13.0407,146.09,146.03,23.9675]
[1723553070878,6.1956,146.09,146.03,17.1196]
[1723553071074,6.1956,146.09,146.04,6.847]
[1723553071594,1.71165243,146.08,146.05,6.8469]
[1723553071771,6.1956,146.09,146.05,6.8469]
[1723553071980,6.1956,146.09,146.06,6.8464]
[1723553072277,16.6125,146.12,146.06,17.1162]
[1723553072464,16.6125,146.12,146.06,23.9622]
[1723553072778,18.32399848,146.12,146.06,23.9622]
[1723553073582,25.16779848,146.12,146.06,23.9622]
[1723553073751,25.16779848,146.12,146.03,6.8477]
[1723553073752,6.8451,146.09,146.03,6.8477]
[1723553073962,45.0,146.11,146.04,6.8474]
[1723553073963,45.25098,146.11,146.04,6.8474]
[1723553074153,26.8446,146.1,146.05,6.8469]
[1723553074464,20.0,146.1,146.05,6.8469]
[1723553075075,20.0,146.1,146.06,6.8464]
[1723553075376,20.0,146.11,146.06,6.8464]
[1723553075770,20.0,146.11,146.07,6.8459]
[1723553075982,20.0,146.11,146.09,6.845]
[1723553076284,20.0,146.11,146.03,17.1196]
[1723553076453,1.71133975,146.1,145.97,73.3814]
[1723553076648,6.8456,146.08,146.02,6.8483]
[1723553076858,21.71212112,146.07,146.02,6.8483]
[1723553077363,6.8465,146.06,146.0,23.9723]
[1723553077575,16.5685,146.03,145.96,17.1268]
[1723553077869,16.5685,146.03,145.99,6.8493]
[1723553078251,16.5685,146.03,146.0,6.8491]
[1723553078454,16.5685,146.03,145.98,17.1247]
[1723553079075,6.8492,146.01,145.95,17.1288]
[1723553079280,1.71278582,146.0,145.95,23.9804]
[1723553079487,8.5620319,146.01,145.95,23.9804]
[1723553079858,20.0,146.02,145.95,17.1288]
[1723553080058,20.0,146.02,145.95,34.2564]
[1723553080272,20.0,146.02,146.0,6.8492]
[1723553080474,20.0,146.02,146.01,6.8488]
[1723553080672,20.0,146.02,145.99,17.1234]
[1723553080972,16.5685,146.03,145.99,23.9727]
[1723553081164,20.0,146.02,145.99,23.9727]
[1723553081362,20.0,146.02,145.99,17.1234]
[1723553081788,20.0,146.02,145.99,23.9731]
[1723553081962,20.0,146.02,145.97,6.8506]
[1723553082157,26.8484,146.02,145.96,23.9789]
[1723553082362,20.0,146.02,145.96,17.1278]
[1723553082583,21.71263603,146.02,145.96,17.1278]
[1723553082760,20.0,146.02,145.96,17.1278]
[1723553082968,20.0,146.02,145.99,6.8493]
[1723553083174,20.0,146.02,145.98,23.9748]
[1723553083364,20.0,146.02,145.95,17.25419]
[1723553083691,26.8484,146.02,145.96,6.851]
[1723553083889,20.0,146.02,145.97,17.1261]
[1723553084072,20.0,146.02,145.99,17.1237]
[1723553084385,20.0,146.02,145.97,6.8503]
[1723553085293,20.0,146.02,145.98,6.85]
[1723553085581,20.0,146.02,145.99,6.8495]
[1723553085789,20.0,146.02,145.98,17.1249]
[1723553086169,16.5685,146.03,146.0,17.1227]
[1723553086383,6.3175,146.04,146.03,6.8479]
[1723553086633,6.3175,146.04,146.02,17.1197]
[1723553086773,6.3175,146.04,146.0,6.8489]
[1723553086959,16.593,146.07,145.99,0.25098]
[1723553087286,16.593,146.07,146.05,6.8468]
[1723553087866,16.593,146.07,146.04,6.8472]
[1723553088867,1.71187545,146.06,146.04,6.8472]
[1723553089073,1.71187545,146.06,146.03,23.967]
[1723553089301,16.593,146.07,146.04,6.8473]
[1723553089477,16.593,146.07,146.03,23.967]
[1723553089794,16.593,146.07,146.01,0.12549]
[1723553089981,16.593,146.07,146.04,6.8473]
[1723553090173,16.593,146.07,146.02,23.9683]
[1723553090379,16.593,146.07,146.03,6.8476]
[1723553090587,18.30506722,146.07,146.01,6.8486]
[1723553090914,26.8466,146.06,146.01,6.8486]
[1723553091282,20.0,146.06,145.99,17.1238]
[1723553091791,1.71224505,146.05,145.99,17.1238]
[1723553091991,65.9765,146.06,146.01,6.8487]
[1723553092200,1.71229807,146.05,145.99,17.1238]
[1723553092502,1.71229807,146.05,145.92,73.3945]
[1723553092503,1.71245981,146.04,145.96,17.1274]
[1723553092879,6.5482,146.03,145.96,17.1274]
[1723553093082,21.71275849,146.02,145.96,17.1274]
[1723553093306,6.8497,146.0,145.95,6.8512]
[1723553093489,1.71275805,146.01,145.96,6.8511]
[1723553093816,20.0,146.02,145.97,6.8507]
[1723553093989,20.0,146.02,145.98,6.8502]
[1723553094400,20.0,146.02,145.97,17.1263]
[1723553094716,20.0,146.02,145.98,6.8501]
[1723553095183,20.0,146.02,145.99,6.8494]
[1723553095382,20.0,146.02,145.98,6.8501]
[1723553095606,20.0,146.02,145.97,17.1263]
[1723553095918,20.0,146.02,145.92,73.3945]
[1723553095919,20.0,146.02,145.99,17.1234]
[1723553096714,6.5482,146.03,146.02,17.1209]
[1723553096903,6.5482,146.03,146.02,23.9692]
[1723553097409,6.5482,146.03,146.02,6.8483]
[1723553097789,23.2585,146.07,146.05,6.8467]
[1723553097987,23.2585,146.07,146.06,6.8465]
[1723553098395,22.4359,146.13,146.06,17.1155]
[1723553098616,6.8438,146.12,146.07,6.8459]
[1723553099207,22.4359,146.13,146.09,6.845]
[1723553099612,29.2791,146.13,146.08,6.8454]
[1723553100315,22.4359,146.13,146.06,17.1155]
[1723553100516,22.4359,146.13,146.06,23.9619]
[1723553100727,20.0,146.12,146.08,17.1134]
[1723553101015,22.4359,146.13,146.11,6.844]
[1723553101187,22.4359,146.13,146.12,6.8436]
[1723553101383,39.13,146.2,146.1,17.1105]
[1723553101384,38.7979,146.19,146.1,17.1105]
[1723553101610,6.8418,146.16,146.08,0.12549]
[1723553101820,6.8418,146.16,146.11,6.8438]
[1723553102123,39.13,146.18,146.11,6.8441]
[1723553102300,39.13,146.18,146.09,17.1123]
[1723553102301,6.8423,146.15,146.1,6.8446]
[1723553102500,6.8417,146.17,146.11,6.8439]
[1723553102807,6.8417,146.17,146.09,17.1123]
[1723553102808,6.8417,146.17,146.12,6.8436]
[1723553103327,28.5373,146.19,146.14,6.8425]
[1723553103813,20.0,146.18,146.15,6.8422]
[1723553104014,21.6965,146.19,146.15,6.8422]
[1723553104197,21.6965,146.19,146.1,17.23649]
[1723553104619,21.6965,146.19,146.07,84.25549]
[1723553104620,39.13,146.16,146.07,17.1144]
[1723553104784,39.13,146.16,146.02,86.88310356]
[1723553104785,21.9425,146.11,146.0,39.13]
[1723553104991,21.9425,146.11,146.03,17.1193]
[1723553105304,6.8451,146.09,146.04,6.8473]
[1723553105616,6.8461,146.07,146.02,6.8482]
[1723553105822,1.71194941,146.06,146.02,6.8482]
[1723553105991,6.8461,146.07,146.02,6.8482]
[1723553106327,21.71201016,146.1,146.0,34.2451]
[1723553106328,20.0,146.1,146.0,34.2451]
[1723553106644,20.0,146.17,146.12,17.1091]
[1723553106645,16.5711,146.17,146.12,17.1091]
[1723553106932,23.0997,146.17,146.12,17.1091]
[1723553107089,23.0997,146.17,146.14,17.1062]
[1723553107496,23.0997,146.17,146.11,17.1098]
[1723553107704,23.0997,146.17,146.15,6.8422]
[1723553107906,23.0997,146.17,146.16,6.8418]
[1723553108109,23.0997,146.17,146.13,17.23279]
[1723553108290,23.0997,146.17,146.15,6.8419]
[1723553108492,23.0997,146.17,146.13,17.1073]
[1723553108725,29.9411,146.17,146.13,17.1073]
[1723553108889,29.9411,146.17,146.12,6.8435]
[1723553109088,23.0997,146.17,146.16,6.8418]
[1723553109287,43.0997,146.17,146.16,6.8418]
[1723553109491,49.941,146.17,146.13,6.96819]
[1723553109705,49.941,146.17,146.11,17.1096]
[1723553109706,6.8419,146.16,146.11,17.1096]
[1723553109902,43.0997,146.17,146.08,17.1132]
[1723553110097,6.8433,146.13,146.08,23.9584]
[1723553110805,60.2035,146.17,146.08,17.1132]
[1723553110806,43.0997,146.17,146.08,17.1132]
[1723553110995,20.0,146.16,146.11,6.8441]
[1723553111204,20.0,146.16,146.08,17.1132]
[1723553111205,1.71108015,146.15,146.08,17.1132]
[1723553111397,1.71120895,146.14,146.06,6.8464]
[1723553111603,57.94840895,146.14,146.02,17.1202]
[1723553111805,23.1389,146.09,146.01,34.2419]
[1723553112015,23.1389,146.09,146.08,6.8455]
[1723553112316,23.1389,146.09,146.06,17.1158]
[1723553112519,21.967,146.14,146.09,17.1123]
[1723553112824,20.0,146.13,146.09,17.1123]
[1723553113034,20.0,146.13,146.1,6.8444]
[1723553113645,20.0,146.13,146.09,23.9573]
[1723553113931,20.0,146.13,146.04,73.365]
[1723553113932,20.0,146.13,146.04,39.13]
[1723553114129,20.0,146.13,146.01,44.52154308]
[1723553114130,6.8447,146.1,146.02,39.13]
[1723553114446,6.8461,146.07,146.02,6.8483]
[1723553114815,40.84164606,146.1,146.0,17.1226]
[1723553115114,6.8472,146.05,146.01,6.8488]
[1723553115315,6.8466,146.06,146.01,6.8488]
[1723553115537,20.0,146.05,146.02,6.8482]
[1723553115721,20.0,146.05,146.03,6.8476]
[1723553116042,28.828,146.08,146.02,17.1203]
[1723553116043,21.9824,146.08,146.06,17.1158]
[1723553116334,21.9824,146.08,146.07,6.846]
[1723553116543,21.344,146.12,146.08,6.8453]
[1723553116722,20.0,146.11,146.08,6.8453]
[1723553116923,20.0,146.11,146.07,6.8458]
[1723553117344,6.8451,146.09,146.04,6.8473]
[1723553117722,20.0,146.11,146.04,6.8473]
[1723553117914,20.0,146.11,146.05,17.1169]
[1723553118118,20.0,146.11,146.07,6.8458]
[1723553118339,6.8456,146.08,146.04,0.12549]
[1723553118616,6.8465,146.06,146.02,17.1201]
[1723553118820,17.1131,146.09,145.99,17.1237]
[1723553119019,65.0,146.08,146.0,6.8489]
[1723553119228,6.8465,146.06,146.02,6.8483]
[1723553119533,20.0,146.05,146.02,6.8483]
[1723553119735,20.0,146.05,146.03,6.8478]
[1723553119922,20.0,146.05,146.02,6.8482]
[1723553120117,20.0,146.06,146.02,6.8482]
[1723553120538,20.0,146.06,146.01,17.1215]
[1723553120837,1.7119378,146.05,146.01,17.1215]
[1723553121148,29.6426,146.03,145.98,17.1249]
[1723553121444,1.71232118,146.02,145.98,23.9747]
[1723553121846,1.71243839,146.01,145.98,17.1249]
[1723553122016,21.71243839,146.01,145.97,6.8506]
[1723553122213,20.0,146.01,145.99,6.8496]
[1723553122723,20.0,146.02,145.99,6.8496]
[1723553123134,20.0,146.02,145.97,17.1264]
[1723553123337,6.8488,146.01,145.97,17.1264]
[1723553123651,20.0,146.02,145.98,6.8502]
[1723553123818,26.8484,146.02,145.97,23.9769]
[1723553124318,20.0,146.02,145.98,6.8502]
[1723553124518,26.8486,146.02,145.97,23.977]
[1723553124750,20.0,146.02,145.98,6.8499]
[1723553124947,20.0,146.02,145.99,6.8494]
[1723553125119,20.0,146.02,146.0,6.8492]
[1723553125329,22.3784,146.07,145.99,17.24909]
[1723553125844,22.3784,146.07,145.98,0.12549]
[1723553126052,6.8476,146.04,145.99,6.8496]
[1723553126226,6.848,146.03,145.98,6.8501]
[1723553126434,6.8483,146.02,145.97,23.9769]
[1723553126625,20.0,146.01,145.98,6.8502]
[1723553126952,61.5084,146.07,145.95,0.25098]
[1723553127139,29.2244,146.07,146.02,6.8482]
[1723553127320,22.3784,146.07,146.04,6.8473]
[1723553127522,22.3784,146.07,146.03,17.1194]
[1723553127738,22.3784,146.07,146.05,6.8465]
[1723553127967,22.3784,146.07,146.06,6.8465]
[1723553128430,21.9616,146.12,146.06,0.12549]
[1723553128626,21.9616,146.12,146.07,6.8458]
[1723553128854,21.9616,146.12,146.06,6.8464]
[1723553129035,21.9616,146.12,146.03,0.12549]
[1723553129233,21.9616,146.12,145.98,39.13]
[1723553129451,17.1111,146.11,145.99,65.0]
[1723553129655,21.9616,146.12,146.0,39.13]
[1723553129834,20.0,146.11,146.01,45.0]
[1723553130036,20.0,146.11,146.08,6.8454]
[1723553130237,20.0,146.11,146.02,39.13]
[1723553130238,20.0,146.11,146.06,17.1153]
[1723553130635,6.8446,146.1,146.06,17.1153]
[1723553130844,20.0,146.09,146.06,23.9617]
[1723553131046,26.8442,146.11,146.06,23.9617]
[1723553131357,26.8442,146.11,146.08,6.8454]
[1723553131358,20.0,146.11,146.08,6.8454]
[1723553131536,20.0,146.11,146.07,6.8458]
[1723553131740,26.8441,146.11,146.07,6.8458]
[1723553131936,20.0,146.11,146.07,6.8458]
[1723553132142,20.0,146.11,146.08,6.8455]
[1723553132354,20.0,146.11,146.07,6.97129]
[1723553132535,26.8442,146.11,146.07,6.97129]
[1723553133038,21.7113604,146.11,146.03,17.1188]
[1723553133239,6.8461,146.07,146.03,17.1188]
[1723553133558,6.8452,146.09,146.04,6.8474]
[1723553133870,20.0,146.08,146.04,6.8474]
[1723553134047,20.0,146.08,146.05,17.1171]